{"text_format":"3","workbook":"xlsx","n_sheets":2,"sheets":["START","BUDGET"],"not_rendered":{"defined_names":2},"read":"whole","date_system":"1900"}

{"sheet":"START","index":0,"n_rows":7,"n_cols":2,"rows_kept":7}
[null,"OVER DEZE SJABLOON"]
[null,"Volg de initiële investering in de website en de voordelen en kosten ervan met behulp van dit websitebudget."]
[null,"Vul de bedrijfsnaam en datum in."]
[null,"Voer gegevens in tabellen in om automatisch totalen en evaluatiemetrieken te berekenen."]
[null,"Opmerking:  "]
[null,"Kolom A van het werkblad BUDGET bevat aanvullende instructies. Deze tekst is opzettelijk verborgen. Als u tekst wilt verwijderen, selecteert u kolom A en drukt u op Delete. Als u de tekst zichtbaar wilt maken, selecteert u kolom A en wijzigt u de tekenkleur."]
[null,"Als u meer wilt weten over tabellen in het werkblad, drukt u in een tabel op Shift en F10 en selecteert u de optie Tabel en vervolgens Alternatieve tekst."]

{"sheet":"BUDGET","index":1,"n_rows":43,"n_cols":6,"rows_kept":43,"merged":[[14,1,14,5],[22,1,22,5],[30,1,30,5],[38,1,38,5]]}
["Maak een websitebudget in dit werkblad. Cellen in deze kolom bevatten handige instructies voor het gebruik van dit werkblad. Druk op de pijl-omlaag om aan de slag te gaan."]
["Voer in de cel rechts de naam van het Bedrijfsnaam in.","Bedrijfsnaam"]
["De titel van dit werkblad staat in de cel rechts.","Websitebudget"]
["Voer in de cel rechts de datum in.","Datum"]
["De tip staat in de cel rechts.","Grijze cellen bevatten berekeningen die niet mogen worden gewijzigd."]
["Voer de bedrijfsgegevens in in de tabel Percentage die begint in de cel rechts. De volgende aanwijzing staat in cel A10.","Bedrijfsgegevens","Percentage"]
[null,"Vereiste rentabiliteit",{"v":0.1,"d":"10%"}]
[null,"Belastingtarief",{"v":0.3,"d":"30%"}]
[]
["Voer de gegevens in in de tabel AanvankInvest die begint in de cel rechts. De volgende aanwijzing staat in cel A16.","Aanvankelijke investering in website","JAAR","1","2","3"]
[null,"Hardware (bijvoorbeeld servers)",{"v":25000,"d":"€ 25,000.00"}]
[null,"Software (zoals e-commerce-catalogussoftware)",{"v":15000,"d":"€ 15,000.00"}]
[null,"Ontwikkeling (bijvoorbeeld ontwerp en ontwikkeling van de site door derden)",{"v":150000,"d":"€ 150,000.00"}]
[null,"Totale aanvankelijke investeringen",{"$f":"SUBTOTAL(109,AanvankInvest[JAAR])","v":{"v":190000,"d":"€ 190,000.00"}}]
[]
["Voer de gegevens in in de tabel Voordelen die begint in de cel rechts. De volgende aanwijzing staat in cel A24.","Voordelen van website","JAAR","1","2","3"]
[null,"Directe verkoop",null,{"v":15000,"d":"€ 15,000.00"},{"v":50000,"d":"€ 50,000.00"},{"v":75000,"d":"€ 75,000.00"}]
[null,"Extra verkoop dankzij verbeterde effectiviteit van reclame/verkopers",null,{"v":25000,"d":"€ 25,000.00"},{"v":25000,"d":"€ 25,000.00"},{"v":25000,"d":"€ 25,000.00"}]
[null,"Extra verkoop dankzij grotere deelname van partners",null,{"v":25000,"d":"€ 25,000.00"},{"v":25000,"d":"€ 25,000.00"},{"v":25000,"d":"€ 25,000.00"}]
[null,"Gereduceerde reiskosten",null,{"v":25000,"d":"€ 25,000.00"},{"v":25000,"d":"€ 25,000.00"},{"v":25000,"d":"€ 25,000.00"}]
[null,"Gereduceerde kosten voor klantenservice",null,{"v":50000,"d":"€ 50,000.00"},{"v":50000,"d":"€ 50,000.00"},{"v":50000,"d":"€ 50,000.00"}]
[null,"Totale voordelen",null,{"$f":"SUBTOTAL(109,Voordelen[1])","v":{"v":140000,"d":"€ 140,000.00"}},{"$f":"SUBTOTAL(109,Voordelen[2])","v":{"v":175000,"d":"€ 175,000.00"}},{"$f":"SUBTOTAL(109,Voordelen[3])","v":{"v":200000,"d":"€ 200,000.00"}}]
[]
["Voer de gegevens in in de tabel Kosten die begint in de cel rechts. Waarden worden automatisch berekend in cellen met formules. De volgende aanwijzing staat in cel A32.","Kosten (exclusief aanvankelijke kapitaalinvesteringen)","JAAR","1","2","3"]
[null,"Verkoopkosten",null,{"v":7500,"d":"€ 7,500.00"},{"v":25000,"d":"€ 25,000.00"},{"v":37500,"d":"€ 37,500.00"}]
[null,"Onderhoud",null,{"v":15000,"d":"€ 15,000.00"},{"v":15000,"d":"€ 15,000.00"},{"v":15000,"d":"€ 15,000.00"}]
[null,"Projectmanagement, klantondersteuning",null,{"v":35000,"d":"€ 35,000.00"},{"v":35000,"d":"€ 35,000.00"},{"v":35000,"d":"€ 35,000.00"}]
[null,"Online reclame, registratie bij zoekmachines",null,{"v":10000,"d":"€ 10,000.00"},{"v":10000,"d":"€ 10,000.00"},{"v":10000,"d":"€ 10,000.00"}]
[null,"Afschrijvingen op bedrijfsinvesteringen (berekening gebruikt periode van drie jaar)",null,{"$f":"AanvankInvest[[#Totals],[JAAR]]/3","v":{"v":63333.333333333336,"d":"€ 63,333.33"}},{"$f":"AanvankInvest[[#Totals],[JAAR]]/3","v":{"v":63333.333333333336,"d":"€ 63,333.33"}},{"$f":"AanvankInvest[[#Totals],[JAAR]]/3","v":{"v":63333.333333333336,"d":"€ 63,333.33"}}]
[null,"Totale kosten",null,{"$f":"SUBTOTAL(109,Kosten[1])","v":{"v":130833.33333333334,"d":"€ 130,833.33"}},{"$f":"SUBTOTAL(109,Kosten[2])","v":{"v":148333.33333333334,"d":"€ 148,333.33"}},{"$f":"SUBTOTAL(109,Kosten[3])","v":{"v":160833.33333333334,"d":"€ 160,833.33"}}]
[]
["Waarden worden automatisch berekend in de tabel Totalen die in de cel rechts begint. De volgende aanwijzing staat in cel A40.","Totalen","JAAR","1","2","3"]
[null,"Netto voordelen (kosten)",null,{"$f":"Voordelen[[#Totals],[1]]-Kosten[[#Totals],[1]]","v":{"v":9166.666666666657,"d":"€ 9,166.67"}},{"$f":"Voordelen[[#Totals],[2]]-Kosten[[#Totals],[2]]","v":{"v":26666.666666666657,"d":"€ 26,666.67"}},{"$f":"Voordelen[[#Totals],[3]]-Kosten[[#Totals],[3]]","v":{"v":39166.66666666666,"d":"€ 39,166.67"}}]
[null,"Belasting",null,{"$f":"D33*Belastingtarief","v":{"v":2749.999999999997,"d":"€ 2,750.00"}},{"$f":"E33*Belastingtarief","v":{"v":7999.999999999996,"d":"€ 8,000.00"}},{"$f":"F33*Belastingtarief","v":{"v":11749.999999999996,"d":"€ 11,750.00"}}]
[null,"Winst na belastingen",null,{"$f":"D33-D34","v":{"v":6416.666666666661,"d":"€ 6,416.67"}},{"v":18666.66666666666,"d":"€ 18,666.67"},{"v":27416.66666666666,"d":"€ 27,416.67"}]
[null,"Afschrijving weer toegevoegd",null,{"$f":"D29","v":{"v":63333.333333333336,"d":"€ 63,333.33"}},{"$f":"E29","v":{"v":63333.333333333336,"d":"€ 63,333.33"}},{"$f":"F29","v":{"v":63333.333333333336,"d":"€ 63,333.33"}}]
[null,"Cashflow",{"$f":"-AanvankInvest[[#Totals],[JAAR]]","v":{"v":-190000,"d":"€ -190,000.00"}},{"$f":"D35+D36","v":{"v":69750,"d":"€ 69,750.00"}},{"v":82000,"d":"€ 82,000.00"},{"v":90750,"d":"€ 90,750.00"}]
[null,"Cumulatieve cashflow",{"$f":"C37","v":{"v":-190000,"d":"€ -190,000.00"}},{"$f":"C38+D37","v":{"v":-120250,"d":"€ -120,250.00"}},{"v":-38250,"d":"€ -38,250.00"},{"v":52500,"d":"€ 52,500.00"}]
[]
["Evaluatiemetrieken worden automatisch berekend in de tabel Metrieken die in de cel rechts begint.","Evaluatiemetrieken","Waarden"]
[null,"Netto huidige waarde (NHW)",{"$f":"C37+(NPV(Rentabiliteit,D37:F37))","v":{"v":9359.504132231377,"d":"€ 9,359.50"}}]
[null,"Interne rentabiliteit (IR)",{"$f":"IRR(C37:F37)","v":{"v":0.12655165144706393,"d":"12.66%"}}]
[null,"Terugverdientijd (in jaren)",{"$f":"IF(F38<=0,\"Meer dan drie jaar\",IF(E38<=0,(F37-F38)/F37+2,IF(D38<=0,(E37-E38)/E37+1,IF(C38<=0,(D37-D38)/D37,\"NB\"))))","v":{"v":2.4214876033057853,"d":"2.42"}}]